Workbook

Sheet Sheet1 (3)
A1: 2025年秸秆收储补助明细表
A2: 序号 | B2: 主体名称 | C2: 夏季核查确认收储重量（吨） | D2: 秋季核查确认收储重量（吨） | E2: 全年核查确认收储重量（吨） | F2: 补助资金（元）
A3: 1 | B3: 如皋市纪俊秸秆收贮经营部 | C3: 1429.09 | D3: 1425.24 | E3: =D3+C3 -> 2854.33 | F3: =E3*25 -> 71358.25
A4: 2 | B4: 如皋市美田秸杆专业合作社 | C4: 3560.88 | D4: 2513.2 | E4: =D4+C4 -> 6074.08 | F4: =E4*25 -> 151852
A5: 3 | B5: 如皋市伯余农场 | C5: 2741.9 | D5: 2015.49 | E5: =D5+C5 -> 4757.39 | F5: =E5*25 -> 118934.75
A6: 4 | B6: 如皋市嘉源生物颗粒加工厂 | C6: 3313.96 | D6: 1478.05 | E6: =D6+C6 -> 4792.01 | F6: =E6*25 -> 119800.25
A7: 5 | B7: 如皋市飞玲搬运服务有限公司 | C7: 2806.54 | D7: 2718.27 | E7: =D7+C7 -> 5524.81 | F7: 138120.25
A8: 6 | B8: 如皋市盛禾秸秆加工厂 | C8: 1063.66 | D8: 542.92 | E8: =D8+C8 -> 1606.58 | F8: 40164.5
A9: 7 | B9: 如皋市昌兴生物质燃料经营部 | C9: 381.9 | D9: 624.43 | E9: =D9+C9 -> 1006.33 | F9: 25158.25
A10: 8 | B10: 如皋市润天生物能源有限公司 | C10: 775.29 | D10: 656.8 | E10: =D10+C10 -> 1432.09 | F10: 35802.25
A11: 9 | B11: 如皋市华亚秸秆有限公司 | C11: 546.01 | D11: 464.52 | E11: =D11+C11 -> 1010.53 | F11: 25263.25
A12: 10 | B12: 如皋市丰达农作物秸秆加工中心 | C12: 373.19 | D12: 1012.38 | E12: =D12+C12 -> 1385.57 | F12: 34639.25
A13: 11 | B13: 如皋市曹石秸秆综合利用专业合作社 | C13: 2443.46 | D13: 637.96 | E13: =D13+C13 -> 3081.42 | F13: 77035.5
A14: 12 | B14: 如皋市福瑞秸秆加工厂 | C14: 1761 | D14: 468.87 | E14: =D14+C14 -> 2229.87 | F14: 55746.75
A15: 13 | B15: 如皋源瑞秸秆综合利用有限公司 | C15: 238.5 | D15: 785.68 | E15: =D15+C15 -> 1024.18 | F15: 25604.5
A16: 14 | B16: 如皋市宏梅秸秆综合利用专业合作社 | C16: 440.08 | D16: 657.52 | E16: =D16+C16 -> 1097.6 | F16: 27440
A17: 合计 | C17: =SUM(C3:C16) -> 21875.46 | D17: =SUM(D3:D16) -> 16001.33 | E17: =SUM(E3:E16) -> 37876.79 | F17: =E17*25 -> 946919.75

Sheet Sheet1
A1: 2025年秸秆利用补助明细表
A2: 序号 | B2: 主体名称 | C2: 核查确认利用重量（吨） | D2: 补助资金（元）
A3: 1 | B3: 光大生物能源（如皋）有限公司 | C3: 25551.75 | D3: =C3*15 -> 383276.25
